fUSD/lending_fUSD_20250110
["ID","MTS","AMOUNT","RATE_DAILY","PERIOD"]
[348444816,1736531443091,-500.0,9.553e-05,2]
[348444818,1736531443102,-501.71523141,9.553e-05,2]
[348444821,1736531443114,-500.0,9.553e-05,2]
[348444822,1736531443125,-569.91271833,9.553e-05,2]
[348444824,1736531443136,-500.0,9.553e-05,2]
[348444827,1736531443147,-500.0,9.553e-05,2]
[348444829,1736531443158,-685.51,9.553e-05,2]
[348444830,1736531443168,-580.3,9.553e-05,2]
[348444832,1736531443179,-500.0,9.553e-05,2]
[348444835,1736531443190,-500.57665671,9.553e-05,2]
[348444837,1736531443202,-1378.74,9.553e-05,2]
[348444839,1736531443219,-500.0,9.553e-05,2]
[348444841,1736531443230,-502.30585348,9.553e-05,2]
[348444843,1736531443241,-500.0,9.553e-05,2]
[348444845,1736531443251,-500.0,9.553e-05,2]
[348444847,1736531443262,-500.0,9.553e-05,2]
[348444848,1736531443272,-500.0,9.553e-05,2]
[348444850,1736531443282,-500.63825865,9.553e-05,2]
[348444852,1736531443292,-549.06,9.553e-05,2]
[348444854,1736531443303,-500.0,9.553e-05,2]
[348444856,1736531443313,-500.0,9.553e-05,2]
[348444858,1736531443323,-500.0,9.553e-05,2]
[348444860,1736531443334,-500.0,9.553e-05,2]
[348444862,1736531443345,-500.0,9.553e-05,2]
[348444864,1736531443355,-500.0,9.553e-05,2]
[348444866,1736531443365,-500.0,9.553e-05,2]
[348444868,1736531443375,-500.0,9.553e-05,2]
[348444870,1736531443386,-503.66710165,9.553e-05,2]
[348444872,1736531443396,-1693.77,9.553e-05,2]
[348444874,1736531443407,-500.0,9.553e-05,2]
[348444876,1736531443418,-500.0,9.553e-05,2]
[348444878,1736531443428,-500.0,9.553e-05,2]
[348444880,1736531443440,-500.0,9.553e-05,2]
[348444881,1736531443450,-1796.24,9.553e-05,2]
[348444882,1736531443463,-500.0,9.553e-05,2]
[348444883,1736531443473,-634.2326116,9.553e-05,2]
[348444884,1736531443484,-502.16448266,9.553e-05,2]
[348444885,1736531443495,-2037.91,9.553e-05,2]
[348444886,1736531443505,-1284.62,9.553e-05,2]
[348444887,1736531443516,-500.0,9.553e-05,2]
[348444888,1736531443527,-538.05,9.553e-05,2]
[348444889,1736531443538,-504.88928874,9.553e-05,2]
[348444890,1736531443548,-765.06,9.553e-05,2]
[348444891,1736531443559,-500.0,9.553e-05,2]
[348444892,1736531443569,-907.28,9.553e-05,2]
[348444893,1736531443579,-500.0,9.553e-05,2]
[348444894,1736531443589,-500.0,9.553e-05,2]
[348444895,1736531443600,-2002.94,9.553e-05,2]
[348444896,1736531443610,-642.17,9.553e-05,2]
[348444897,1736531443620,-870.31,9.553e-05,2]
[348444898,1736531443630,-504.57279482,9.553e-05,2]
[348444899,1736531443640,-834.05,9.553e-05,2]
[348444900,1736531443650,-502.98489691,9.553e-05,2]
[348444901,1736531443661,-500.0,9.553e-05,2]
[348444902,1736531443672,-500.0,9.553e-05,2]
[348444903,1736531443682,-534.54669482,9.553e-05,2]
[348444904,1736531443693,-500.0,9.553e-05,2]
[348444905,1736531443703,-500.0,9.553e-05,2]
[348444907,1736531443717,-503.09164022,9.553e-05,2]
[348444909,1736531443728,-512.32,9.553e-05,2]
[348444911,1736531443738,-500.0,9.554e-05,2]
[348444913,1736531443748,-500.81035417,9.554e-05,2]
[348444915,1736531443759,-500.0,9.554e-05,2]
[348444918,1736531443770,-500.0,9.554e-05,2]
[348444920,1736531443780,-500.0,9.554e-05,2]
[348444922,1736531443790,-513.36,9.554e-05,2]
[348444924,1736531443800,-605.91,9.554e-05,2]
[348444926,1736531443811,-500.0,9.554e-05,2]
[348444928,1736531443822,-500.0,9.554e-05,2]
[348444930,1736531443832,-540.09,9.554e-05,2]
[348444932,1736531443842,-500.0,9.554e-05,2]
[348444934,1736531443852,-500.0,9.554e-05,2]
[348444936,1736531443864,-500.0,9.554e-05,2]
[348444938,1736531443874,-500.0,9.554e-05,2]
[348444940,1736531443885,-500.0,9.554e-05,2]
[348444942,1736531443896,-500.0,9.554e-05,2]
[348444944,1736531443907,-500.0,9.554e-05,2]
[348444947,1736531443922,-500.0,9.554e-05,2]
[348444949,1736531443932,-500.0,9.554e-05,2]
[348444951,1736531443942,-500.0,9.554e-05,2]
[348444953,1736531443953,-500.0,9.554e-05,2]
[348444955,1736531443965,-500.0,9.554e-05,2]
[348444957,1736531443975,-402.82013189,9.554e-05,2]
[348444959,1736531443985,-500.0,9.554e-05,2]
[348444961,1736531443998,-506.41,9.554e-05,2]
[348444963,1736531444010,-500.0,9.554e-05,2]
[348444965,1736531444020,-500.0,9.554e-05,2]
[348444967,1736531444030,-500.0,9.554e-05,2]
[348444969,1736531444041,-500.0,9.554e-05,2]
[348444971,1736531444051,-500.0,9.554e-05,2]
[348444973,1736531444061,-500.0,9.554e-05,2]
[348444975,1736531444072,-500.0,9.554e-05,2]
[348444977,1736531444082,-500.0,9.554e-05,2]
[348444979,1736531444092,-500.0,9.554e-05,2]
[348444981,1736531444102,-500.0,9.554e-05,2]
[348444983,1736531444112,-500.0,9.554e-05,2]
[348444986,1736531444123,-500.0,9.554e-05,2]
[348444988,1736531444133,-560.88,9.554e-05,2]
[348444990,1736531444143,-500.0,9.554e-05,2]
[348444992,1736531444153,-500.0,9.554e-05,2]
[348444994,1736531444165,-500.0,9.554e-05,2]
[348444996,1736531444175,-500.0,9.554e-05,2]
[348444998,1736531444185,-500.0,9.554e-05,2]
[348445000,1736531444195,-500.27034364,9.554e-05,2]
[348445002,1736531444205,-652.27,9.554e-05,2]
[348445004,1736531444218,-500.0,9.554e-05,2]
[348445006,1736531444228,-500.0,9.554e-05,2]
[348445008,1736531444238,-500.0,9.554e-05,2]
[348445010,1736531444249,-500.0,9.554e-05,2]
[348445012,1736531444259,-610.26,9.554e-05,2]
[348445014,1736531444269,-500.0,9.554e-05,2]
[348445016,1736531444280,-500.0,9.554e-05,2]
[348445018,1736531444290,-553.35895445,9.554e-05,2]
[348445020,1736531444301,-500.0,9.554e-05,2]
[348445022,1736531444311,-500.0,9.554e-05,2]
[348445024,1736531444322,-500.0,9.554e-05,2]
[348445026,1736531444332,-633.15,9.554e-05,2]
[348445028,1736531444342,-500.0,9.554e-05,2]
[348445030,1736531444352,-500.58510681,9.554e-05,2]
[348445032,1736531444363,-500.0,9.554e-05,2]
[348445034,1736531444373,-500.0,9.554e-05,2]
[348445036,1736531444383,-498.52385353,9.554e-05,2]
[348445038,1736531444393,-500.0,9.554e-05,2]
[348445040,1736531444403,-500.0,9.554e-05,2]
[348445042,1736531444414,-626.65,9.554e-05,2]
[348445044,1736531444425,-500.0,9.554e-05,2]
[348445046,1736531444435,-511.06,9.554e-05,2]
[348445048,1736531444445,-500.0,9.554e-05,2]
[348445050,1736531444456,-500.0,9.554e-05,2]
[348445052,1736531444468,-500.0,9.554e-05,2]
[348445055,1736531444478,-500.0,9.554e-05,2]
[348445057,1736531444488,-500.0,9.554e-05,2]
[348445059,1736531444498,-500.0,9.554e-05,2]
[348445061,1736531444508,-500.0,9.554e-05,2]
[348445063,1736531444519,-527.06,9.554e-05,2]
[348445065,1736531444530,-500.0,9.554e-05,2]
[348445067,1736531444540,-500.0,9.554e-05,2]
[348445069,1736531444550,-500.0,9.554e-05,2]
[348445071,1736531444560,-500.0,9.554e-05,2]
[348445073,1736531444569,-7.61263162,9.554e-05,2]
[348445083,1736531445186,-492.38736838,9.554e-05,2]
[348445084,1736531445196,-500.0,9.554e-05,2]
[348445085,1736531445206,-500.0,9.554e-05,2]
[348445086,1736531445217,-500.0,9.554e-05,2]
[348445087,1736531445226,-257.26003162,9.554e-05,2]
[348445088,1736531445248,-500.0,9.28e-05,2]
[348445089,1736531445258,-35.42495729,9.554e-05,2]
[348445091,1736531445270,-207.31501109,9.554e-05,2]
[348445092,1736531445280,-624.68633076,9.554e-05,2]
[348445093,1736531445290,-500.0,9.554e-05,2]
[348445094,1736531445300,-547.03,9.554e-05,2]
[348445095,1736531445310,-1087.45,9.554e-05,2]
[348445096,1736531445320,-737.71,9.554e-05,2]
[348445097,1736531445330,-500.0,9.554e-05,2]
[348445098,1736531445339,-500.0,9.554e-05,2]
[348445099,1736531445349,-500.0,9.554e-05,2]
[348445100,1736531445358,-428.0664758,9.554e-05,2]
[348445101,1736531445370,-71.9335242,9.554e-05,2]
[348445102,1736531445380,-500.0,9.554e-05,2]
[348445104,1736531445390,-500.0,9.554e-05,2]
[348445106,1736531445399,-1064.59,9.554e-05,2]
[348445107,1736531445409,-106.55347339,9.554e-05,2]
[348445140,1736531446008,-282.64079148,9.279e-05,2]
[348445141,1736531446019,-393.44652661,9.554e-05,2]
[348445142,1736531446029,-504.63739607,9.554e-05,2]
[348445143,1736531446038,-500.0,9.554e-05,2]
[348445144,1736531446048,-540.23,9.554e-05,2]
[348445145,1736531446058,-500.0,9.554e-05,2]
[348445146,1736531446067,-500.0,9.554e-05,2]
[348445147,1736531446078,-523.12,9.554e-05,2]
[348445148,1736531446088,-603.1,9.554e-05,2]
[348445149,1736531446098,-500.0,9.554e-05,2]
[348445150,1736531446108,-638.1,9.554e-05,2]
[348445151,1736531446118,-672.58,9.554e-05,2]
[348445152,1736531446128,-591.76,9.554e-05,2]
[348445153,1736531446137,-551.48,9.554e-05,2]
[348445154,1736531446146,-1835.95,9.554e-05,2]
[348445155,1736531446156,-4517.54,9.554e-05,2]
[348445156,1736531446167,-500.0,9.554e-05,2]
[348445157,1736531446177,-500.0,9.554e-05,2]
[348445158,1736531446186,-500.0,9.554e-05,2]
[348445159,1736531446196,-556.4,9.554e-05,2]
[348445160,1736531446206,-588.18,9.554e-05,2]
[348445161,1736531446218,-500.0,9.554e-05,2]
[348445162,1736531446229,-522.06171876,9.554e-05,2]
[348445163,1736531446239,-389.17990266,9.554e-05,2]
[348445164,1736531446255,-300.42050604,9.554e-05,2]
[348445165,1736531446274,-900.8495913,9.554e-05,2]
[348445166,1736531446285,-212.4713977,9.554e-05,2]
[348445167,1736531446298,-287.5286023,9.554e-05,2]
[348445168,1736531446307,-931.53,9.554e-05,2]
[348445169,1736531446317,-226.69028868,9.554e-05,2]
[348445170,1736531446331,-273.30971132,9.554e-05,2]
[348445171,1736531446343,-599.07,9.554e-05,2]
[348445172,1736531446353,-1063.23,9.554e-05,2]
[348445173,1736531446363,-500.0,9.554e-05,2]
[348445174,1736531446372,-1495.27,9.554e-05,2]
[348445175,1736531446382,-2502.73,9.554e-05,2]
[348445176,1736531446391,-500.0,9.554e-05,2]
[348445177,1736531446401,-500.0,9.554e-05,2]
[348445178,1736531446411,-500.0,9.554e-05,2]
[348445179,1736531446421,-500.0,9.554e-05,2]
[348445180,1736531446432,-2442.56,9.554e-05,2]
[348445181,1736531446442,-500.0,9.554e-05,2]
[348445182,1736531446451,-594.3,9.554e-05,2]
[348445183,1736531446460,-731.27,9.554e-05,2]
[348445184,1736531446471,-649.72,9.554e-05,2]
[348445185,1736531446481,-500.0,9.554e-05,2]
[348445186,1736531446490,-500.0,9.554e-05,2]
[348445187,1736531446500,-830.24,9.554e-05,2]
[348445188,1736531446510,-500.0,9.554e-05,2]
[348445189,1736531446520,-586.2,9.554e-05,2]
[348445190,1736531446531,-500.0,9.554e-05,2]
[348445191,1736531446541,-500.0,9.554e-05,2]
[348445192,1736531446551,-500.0,9.554e-05,2]
[348445193,1736531446561,-579.52,9.554e-05,2]
[348445194,1736531446571,-1371.51,9.554e-05,2]
[348445195,1736531446582,-634.64,9.554e-05,2]
[348445196,1736531446592,-500.0,9.554e-05,2]
[348445197,1736531446602,-2430.85,9.554e-05,2]
[348445198,1736531446613,-500.0,9.554e-05,2]
[348445199,1736531446622,-628.64,9.554e-05,2]
[348445200,1736531446632,-500.0,9.554e-05,2]
[348445201,1736531446641,-501.29491568,9.555e-05,2]
[348445202,1736531446651,-506.10653137,9.555e-05,2]
[348445203,1736531446660,-500.0,9.555e-05,2]
[348445204,1736531446670,-500.0,9.555e-05,2]
[348445205,1736531446680,-508.39829676,9.555e-05,2]
[348445206,1736531446690,-500.0,9.555e-05,2]
[348445207,1736531446700,-500.0,9.555e-05,2]
[348445208,1736531446710,-213.43305888,9.555e-05,2]
[348445209,1736531446723,-500.0,9.555e-05,2]
[348445210,1736531446732,-500.0,9.555e-05,2]
[348445211,1736531446742,-500.0,9.555e-05,2]
[348445212,1736531446751,-500.0,9.555e-05,2]
[348445213,1736531446761,-500.0,9.555e-05,2]
[348445214,1736531446771,-500.0,9.555e-05,2]
[348445215,1736531446781,-500.0,9.555e-05,2]
[348445216,1736531446791,-295.2086643,9.555e-05,2]
[348445217,1736531446801,-500.0,9.555e-05,2]
[348445218,1736531446810,-789.92,9.555e-05,2]
[348445219,1736531446820,-505.89836605,9.555e-05,2]
[348445220,1736531446829,-500.0,9.555e-05,2]
[348445221,1736531446839,-500.0,9.555e-05,2]
[348445222,1736531446849,-500.0,9.555e-05,2]
[348445223,1736531446859,-500.0,9.555e-05,2]
[348445224,1736531446868,-502.89239099,9.555e-05,2]
[348445225,1736531446878,-500.0,9.555e-05,2]
[348445226,1736531446888,-446.25224526,9.555e-05,2]
[348445227,1736531446897,-588.38844116,9.555e-05,2]
[348445228,1736531446907,-570.71899837,9.555e-05,2]
[348445229,1736531446920,-508.96174144,9.555e-05,2]
[348445230,1736531446930,-500.0,9.555e-05,2]
[348445231,1736531446940,-500.0,9.555e-05,2]
[348445232,1736531446950,-500.0,9.555e-05,2]
[348445233,1736531446962,-500.0,9.555e-05,2]
[348445234,1736531446972,-500.0,9.555e-05,2]
[348445235,1736531446982,-500.0,9.555e-05,2]
[348445236,1736531446992,-500.0,9.555e-05,2]
[348445237,1736531447002,-500.0,9.555e-05,2]
[348445238,1736531447011,-500.0,9.555e-05,2]
[348445239,1736531447020,-621.12,9.555e-05,2]
[348445240,1736531447030,-539.22,9.555e-05,2]
[348445241,1736531447041,-500.0,9.555e-05,2]
[348445242,1736531447050,-436.26,9.555e-05,2]
[348445243,1736531447060,-500.0,9.555e-05,2]
[348445244,1736531447070,-500.0,9.555e-05,2]
[348445245,1736531447080,-500.0,9.555e-05,2]
[348445246,1736531447090,-500.0,9.555e-05,2]
[348445247,1736531447100,-500.0,9.555e-05,2]
[348445248,1736531447109,-500.0,9.555e-05,2]
[348445249,1736531447119,-500.0,9.555e-05,2]
[348445250,1736531447128,-500.0,9.555e-05,2]
[348445251,1736531447139,-500.0,9.555e-05,2]
[348445252,1736531447149,-500.0,9.555e-05,2]
[348445253,1736531447158,-500.0,9.555e-05,2]
[348445254,1736531447167,-500.0,9.555e-05,2]
[348445255,1736531447179,-500.0,9.555e-05,2]
[348445256,1736531447190,-500.0,9.555e-05,2]
[348445257,1736531447199,-500.0,9.555e-05,2]
[348445258,1736531447209,-500.0,9.555e-05,2]
[348445259,1736531447220,-502.75939043,9.555e-05,2]
[348445260,1736531447229,-500.0,9.555e-05,2]
[348445261,1736531447238,-500.0,9.555e-05,2]
[348445262,1736531447248,-500.0,9.555e-05,2]
[348445263,1736531447259,-549.25,9.555e-05,2]
[348445264,1736531447268,-500.0,9.555e-05,2]
[348445265,1736531447279,-500.0,9.555e-05,2]
[348445266,1736531447289,-500.0,9.555e-05,2]
[348445267,1736531447298,-500.0,9.555e-05,2]
[348445268,1736531447309,-500.0,9.555e-05,2]
[348445269,1736531447319,-500.0,9.555e-05,2]
[348445270,1736531447329,-500.0,9.555e-05,2]
[348445271,1736531447339,-501.05243216,9.555e-05,2]
[348445272,1736531447349,-500.0,9.555e-05,2]
[348445273,1736531447360,-500.0,9.555e-05,2]
[348445274,1736531447369,-500.0,9.555e-05,2]
[348445275,1736531447379,-500.0,9.555e-05,2]
[348445276,1736531447389,-500.0,9.555e-05,2]
[348445277,1736531447399,-500.0,9.555e-05,2]
[348445278,1736531447409,-500.0,9.555e-05,2]
[348445279,1736531447419,-500.0,9.555e-05,2]
[348445280,1736531447429,-500.0,9.555e-05,2]
[348445281,1736531447439,-500.56969887,9.555e-05,2]
[348445282,1736531447449,-500.0,9.555e-05,2]
[348445283,1736531447459,-500.0,9.555e-05,2]
[348445284,1736531447470,-500.0,9.555e-05,2]
[348445285,1736531447479,-500.0,9.555e-05,2]
[348445286,1736531447489,-500.0,9.555e-05,2]
[348445287,1736531447499,-500.0,9.555e-05,2]
[348445288,1736531447509,-500.0,9.555e-05,2]
[348445289,1736531447518,-500.0,9.555e-05,2]
[348445290,1736531447528,-500.0,9.555e-05,2]
[348445291,1736531447538,-500.0,9.555e-05,2]
[348445292,1736531447547,-500.0,9.555e-05,2]
[348445293,1736531447557,-1078.6,9.555e-05,2]
[348445294,1736531447566,-500.0,9.555e-05,2]
[348445295,1736531447576,-500.0,9.555e-05,2]
[348445296,1736531447587,-500.0,9.555e-05,2]
[348445297,1736531447597,-500.0,9.555e-05,2]
[348445298,1736531447606,-500.0,9.555e-05,2]
[348445299,1736531447615,-500.0,9.555e-05,2]
[348445300,1736531447625,-500.0,9.555e-05,2]
[348445301,1736531447636,-2612.56,9.555e-05,2]
[348445302,1736531447646,-500.0,9.555e-05,2]
[348445303,1736531447656,-500.0,9.555e-05,2]
[348445304,1736531447666,-500.0,9.555e-05,2]
[348445305,1736531447675,-500.0,9.555e-05,2]
[348445306,1736531447685,-500.0,9.555e-05,2]
[348445307,1736531447694,-500.0,9.555e-05,2]
[348445308,1736531447704,-500.0,9.555e-05,2]
[348445309,1736531447714,-2712.8,9.555e-05,2]
[348445310,1736531447724,-603.85,9.555e-05,2]
[348445311,1736531447733,-500.0,9.555e-05,2]
[348445312,1736531447744,-522.58,9.555e-05,2]
[348445313,1736531447754,-500.0,9.555e-05,2]
[348445314,1736531447763,-500.0,9.555e-05,2]
[348445315,1736531447773,-605.23,9.555e-05,2]
[348445316,1736531447782,-504.6704761,9.555e-05,2]
[348445317,1736531447791,-593.11,9.555e-05,2]
[348445318,1736531447801,-500.0,9.555e-05,2]
[348445319,1736531447811,-500.0,9.555e-05,2]
[348445320,1736531447820,-1225.03,9.555e-05,2]
[348445321,1736531447830,-500.0,9.555e-05,2]
[348445322,1736531447840,-500.0,9.555e-05,2]
[348445323,1736531447850,-500.0,9.555e-05,2]
[348445324,1736531447861,-500.0,9.555e-05,2]
[348445325,1736531447871,-500.0,9.555e-05,2]
[348445326,1736531447881,-507.11041122,9.555e-05,2]
[348445327,1736531447890,-500.0,9.555e-05,2]
[348445328,1736531447900,-500.0,9.555e-05,2]
[348445329,1736531447910,-500.0,9.555e-05,2]
[348445330,1736531447925,-500.0,9.555e-05,2]
[348445331,1736531447934,-500.0,9.555e-05,2]
[348445332,1736531447944,-500.0,9.555e-05,2]
[348445333,1736531447957,-500.0,9.555e-05,2]
[348445334,1736531447968,-500.0,9.555e-05,2]
[348445335,1736531447977,-500.0,9.555e-05,2]
[348445336,1736531447988,-500.0,9.555e-05,2]
[348445337,1736531447999,-500.0,9.555e-05,2]
[348445338,1736531448009,-500.0,9.555e-05,2]
[348445339,1736531448018,-2396.3,9.555e-05,2]
[348445340,1736531448028,-500.0,9.555e-05,2]
[348445341,1736531448037,-500.0,9.555e-05,2]
[348445342,1736531448048,-500.0,9.555e-05,2]
[348445343,1736531448058,-503.99151265,9.555e-05,2]
[348445344,1736531448067,-500.0,9.555e-05,2]
[348445345,1736531448078,-500.0,9.555e-05,2]
[348445346,1736531448088,-500.0,9.555e-05,2]
[348445347,1736531448097,-500.0,9.555e-05,2]
[348445348,1736531448107,-500.0,9.555e-05,2]
[348445349,1736531448117,-500.0,9.555e-05,2]
[348445350,1736531448127,-500.0,9.555e-05,2]
[348445351,1736531448137,-500.0,9.555e-05,2]
[348445352,1736531448147,-500.0,9.555e-05,2]
[348445353,1736531448157,-500.0,9.555e-05,2]
[348445354,1736531448167,-500.0,9.555e-05,2]
[348445355,1736531448177,-500.0,9.555e-05,2]
[348445356,1736531448187,-500.0,9.555e-05,2]
[348445357,1736531448197,-500.0,9.555e-05,2]
[348445358,1736531448207,-572.45,9.555e-05,2]
[348445359,1736531448219,-500.0,9.555e-05,2]
[348445360,1736531448229,-535.6774951,9.555e-05,2]
[348445361,1736531448239,-167.79160638,9.555e-05,2]
[348445362,1736531448249,-500.0,9.555e-05,2]
[348445363,1736531448259,-500.0,9.555e-05,2]
[348445364,1736531448268,-553.52,9.555e-05,2]
[348445365,1736531448278,-500.0,9.555e-05,2]
[348445366,1736531448288,-500.0,9.555e-05,2]
[348445367,1736531448298,-500.0,9.555e-05,2]
[348445368,1736531448307,-585.79,9.555e-05,2]
[348445369,1736531448318,-500.0,9.555e-05,2]
[348445370,1736531448328,-611.73,9.555e-05,2]
[348445371,1736531448337,-511.46,9.555e-05,2]
[348445372,1736531448348,-792.49,9.556e-05,2]
[348445373,1736531448358,-935.25,9.556e-05,2]
[348445374,1736531448367,-1166.4,9.556e-05,2]
[348445375,1736531448377,-893.81,9.556e-05,2]
[348445376,1736531448387,-2578.37,9.556e-05,2]
[348445377,1736531448397,-1034.11,9.556e-05,2]
[348445378,1736531448406,-1857.48,9.556e-05,2]
[348445379,1736531448416,-1017.39,9.556e-05,2]
[348445380,1736531448426,-888.36,9.556e-05,2]
[348445381,1736531448436,-307.8,9.556e-05,2]
[348445382,1736531448446,-829.55,9.556e-05,2]
[348445383,1736531448456,-1537.53,9.556e-05,2]
[348445384,1736531448465,-504.82,9.556e-05,2]
[348445385,1736531448474,-830.64,9.556e-05,2]
[348445386,1736531448484,-686.51,9.556e-05,2]
[348445387,1736531448493,-500.0,9.556e-05,2]
[348445388,1736531448504,-604.02,9.556e-05,2]
[348445389,1736531448513,-538.66,9.556e-05,2]
[348445390,1736531448523,-1560.83,9.556e-05,2]
[348445391,1736531448533,-500.0,9.556e-05,2]
[348445392,1736531448542,-500.0,9.556e-05,2]
[348445393,1736531448552,-500.0,9.556e-05,2]
[348445394,1736531448561,-665.9,9.556e-05,2]
[348445395,1736531448571,-1075.58,9.556e-05,2]
[348445396,1736531448580,-500.0,9.556e-05,2]
[348445397,1736531448590,-679.57,9.556e-05,2]
[348445398,1736531448599,-500.0,9.556e-05,2]
[348445399,1736531448608,-944.23,9.556e-05,2]
[348445400,1736531448618,-500.0,9.556e-05,2]
[348445401,1736531448627,-581.83,9.556e-05,2]
[348445402,1736531448637,-782.79,9.556e-05,2]
[348445403,1736531448647,-1006.56,9.556e-05,2]
[348445404,1736531448656,-888.62,9.556e-05,2]
[348445405,1736531448666,-626.67,9.556e-05,2]
[348445406,1736531448675,-1744.5,9.556e-05,2]
[348445407,1736531448685,-500.0,9.556e-05,2]
[348445408,1736531448921,-3149.53,9.556e-05,2]
[348445409,1736531448931,-1527.67,9.556e-05,2]
[348445410,1736531448941,-500.0,9.557e-05,2]
[348445411,1736531448954,-541.93490885,9.557e-05,2]
[348445412,1736531448964,-562.15,9.557e-05,2]
[348445413,1736531448979,-2630.9,9.557e-05,2]
[348445414,1736531448989,-774.78505,9.557e-05,2]
[348445415,1736531448999,-734.386738,9.557e-05,2]
[348445416,1736531449011,-656.91,9.557e-05,2]
[348445417,1736531449021,-500.0,9.557e-05,2]
[348445418,1736531449031,-500.0,9.557e-05,2]
[348445419,1736531449041,-2028.15,9.557e-05,2]
[348445420,1736531449051,-500.0,9.557e-05,2]
[348445421,1736531449062,-698.98,9.557e-05,2]
[348445422,1736531449072,-500.0,9.557e-05,2]
[348445423,1736531449083,-710.89,9.557e-05,2]
[348445424,1736531449093,-1229.36,9.557e-05,2]
[348445425,1736531449103,-1178.14,9.557e-05,2]
[348445426,1736531449113,-500.0,9.557e-05,2]
[348445427,1736531449122,-802.57,9.557e-05,2]
[348445428,1736531449133,-500.0,9.569e-05,2]
[348445429,1736531449142,-150.0,9.574e-05,2]
[348445430,1736531449152,-150.0,9.613e-05,2]
[348445431,1736531449163,-715.36517,9.7e-05,2]
[348445432,1736531449173,-500.0,9.726e-05,2]
[348445433,1736531449183,-150.0,9.729e-05,2]
[348445434,1736531449193,-150.0,9.733e-05,2]
[348445435,1736531449203,-150.0,9.747e-05,2]
[348445436,1736531449213,-1081.36273036,9.8e-05,3]
[348445437,1736531449235,-18.63726964,9.8e-05,3]
[348445438,1736531449244,-420.0,9.806e-05,2]
[348445439,1736531449255,-29.28273036,9.827e-05,2]
[348445440,1736531449294,-470.71726964,9.827e-05,2]
[348445441,1736531449304,-157.1,9.827e-05,2]
[348445442,1736531449314,-500.0,9.827e-05,2]
[348445443,1736531449323,-500.0,9.827e-05,2]
[348445444,1736531449333,-500.0,9.827e-05,2]
[348445445,1736531449343,-180.86600646,9.827e-05,2]
[348445446,1736531449354,-319.13399354,9.827e-05,2]
[348445447,1736531449364,-57.33400646,9.827e-05,2]
[348445448,1736531449415,-500.0,9.279e-05,2]
[348445449,1736531449424,-442.66599354,9.827e-05,2]
[348445450,1736531449434,-500.0,9.827e-05,2]
[348445451,1736531449444,-212.43646993,9.827e-05,2]
[348445452,1736531449455,-500.0,9.827e-05,2]
[348445453,1736531449464,-500.0,9.827e-05,2]
[348445454,1736531449480,-500.0,9.827e-05,2]
[348445455,1736531449489,-500.0,9.827e-05,2]
[348445456,1736531449499,-500.0,9.827e-05,2]
[348445457,1736531449508,-500.0,9.827e-05,2]
[348445458,1736531449518,-500.0,9.827e-05,2]
[348445459,1736531449528,-500.0,9.827e-05,2]
[348445460,1736531449537,-500.0,9.827e-05,2]
[348445461,1736531449546,-451.96211015,9.827e-05,2]
[348445462,1736531449556,-500.0,9.827e-05,2]
[348445463,1736531449565,-500.0,9.827e-05,2]
[348445464,1736531449575,-685.51,9.827e-05,2]
[348445465,1736531449585,-500.0,9.827e-05,2]
[348445466,1736531449594,-580.3,9.827e-05,2]
[348445467,1736531449603,-1378.74,9.827e-05,2]
[348445468,1736531449613,-500.0,9.827e-05,2]
[348445469,1736531449623,-204.09726324,9.827e-05,2]
[348445470,1736531449632,-500.0,9.827e-05,2]
[348445471,1736531449642,-338.75975199,9.827e-05,2]
[348445472,1736531449651,-503.56314217,9.827e-05,2]
[348445473,1736531449662,-503.26065331,9.827e-05,2]
[348445474,1736531449671,-500.0,9.827e-05,2]
[348445475,1736531449681,-1693.77,9.827e-05,2]
[348445476,1736531449693,-500.0,9.827e-05,2]
[348445477,1736531449703,-1796.24,9.827e-05,2]